[Event "*** Titled Tuesday Blitz"]
[Site "Chess.com"]
[Date "2021.02.09"]
[Round "10"]
[White "JoliyRoger"]
[Black "Goryachkina"]
[Result "0-1"]
[WhiteElo "2426"]
[BlackElo "2661"]
[TimeControl "180+1"]
[EndTime "11:55:44 PST"]
[Termination "Goryachkina won on time"]

1. Nf3 {[%clk 0:02:55.2]} 1... d5 {[%clk 0:02:59.5]} 2. d4 {[%clk 0:02:33]} 2...
Nf6 {[%clk 0:02:58.8]} 3. c4 {[%clk 0:02:32.4]} 3... e6 {[%clk 0:02:58.7]} 4.
cxd5 {[%clk 0:02:32.4]} 4... exd5 {[%clk 0:02:58.5]} 5. Nc3 {[%clk 0:02:33.3]}
5... c6 {[%clk 0:02:57.2]} 6. Bg5 {[%clk 0:02:33.8]} 6... h6 {[%clk 0:02:55.4]}
7. Bh4 {[%clk 0:02:33.7]} 7... Be7 {[%clk 0:02:55.9]} 8. Bxf6 {[%clk 0:02:34]}
8... Bxf6 {[%clk 0:02:55.9]} 9. e3 {[%clk 0:02:34.9]} 9... Bf5 {[%clk
0:02:51.2]} 10. Bd3 {[%clk 0:02:35.6]} 10... Bxd3 {[%clk 0:02:51]} 11. Qxd3
{[%clk 0:02:36.5]} 11... O-O {[%clk 0:02:51.3]} 12. O-O {[%clk 0:02:37.1]} 12...
Nd7 {[%clk 0:02:51.4]} 13. b4 {[%clk 0:02:37.2]} 13... a6 {[%clk 0:02:38.1]} 14.
a4 {[%clk 0:02:37.6]} 14... b5 {[%clk 0:02:36.2]} 15. a5 {[%clk 0:02:36.7]}
15... Be7 {[%clk 0:02:35.8]} 16. Na2 {[%clk 0:02:36.9]} 16... Bd6 {[%clk
0:02:29.7]} 17. Rac1 {[%clk 0:02:37.8]} 17... Rc8 {[%clk 0:02:28.9]} 18. Rc2
{[%clk 0:02:36.2]} 18... Qe7 {[%clk 0:02:28]} 19. Rfc1 {[%clk 0:02:36.7]} 19...
Bxb4 {[%clk 0:02:11.3]} 20. Rxc6 {[%clk 0:01:47.7]} 20... Rxc6 {[%clk 0:02:11]}
21. Rxc6 {[%clk 0:01:48.4]} 21... Nb8 {[%clk 0:02:11.2]} 22. Rc2 {[%clk
0:01:16.9]} 22... Bxa5 {[%clk 0:02:10.4]} 23. Ne5 {[%clk 0:01:10.3]} 23... Bc7
{[%clk 0:02:08.4]} 24. Nc6 {[%clk 0:01:00.1]} 24... Qd6 {[%clk 0:01:55.5]} 25.
Ne5 {[%clk 0:01:00]} 25... Qe7 {[%clk 0:01:30.2]} 26. Nf3 {[%clk 0:00:48.3]}
26... Rd8 {[%clk 0:01:07.3]} 27. Qb3 {[%clk 0:00:45.7]} 27... Ba5 {[%clk
0:00:57.2]} 28. Rc5 {[%clk 0:00:40.6]} 28... Qe6 {[%clk 0:00:49]} 29. Nc3 {[%clk
0:00:23.9]} 29... Bxc3 {[%clk 0:00:46.7]} 30. Qxc3 {[%clk 0:00:24.3]} 30... Qg6
{[%clk 0:00:38.4]} 31. h3 {[%clk 0:00:22.1]} 31... Qb6 {[%clk 0:00:37]} 32. Qb3
{[%clk 0:00:19.5]} 32... Qb7 {[%clk 0:00:27.5]} 33. Ne5 {[%clk 0:00:19.3]} 33...
b4 {[%clk 0:00:23]} 34. g3 {[%clk 0:00:16.6]} 34... f6 {[%clk 0:00:14.2]} 35.
Nd3 {[%clk 0:00:15.4]} 35... Nc6 {[%clk 0:00:13.2]} 36. Qa4 {[%clk 0:00:13.8]}
36... Rd6 {[%clk 0:00:10.3]} 37. Qb3 {[%clk 0:00:12.5]} 37... a5 {[%clk
0:00:09.2]} 38. Rxd5 {[%clk 0:00:12.6]} 38... a4 {[%clk 0:00:07.1]} 39. Qc4
{[%clk 0:00:11.3]} 39... Rxd5 {[%clk 0:00:06.7]} 40. Qxd5+ {[%clk 0:00:11.4]}
40... Kh8 {[%clk 0:00:06.1]} 41. Nf4 {[%clk 0:00:08.2]} 41... g5 {[%clk
0:00:04.1]} 0-1

[Event "*** Titled Tuesday Blitz"]
[Site "Chess.com"]
[Date "2021.02.09"]
[Round "10"]
[White "Sharpchess22"]
[Black "Ajedrez_con_German"]
[Result "1-0"]
[WhiteElo "2734"]
[BlackElo "2590"]
[TimeControl "180+1"]
[EndTime "11:55:45 PST"]
[Termination "Sharpchess22 won on time"]

1. c4 {[%clk 0:03:00.9]} 1... g6 {[%clk 0:02:59.1]} 2. Nf3 {[%clk 0:02:59.9]}
2... Bg7 {[%clk 0:03:00]} 3. d4 {[%clk 0:02:59.3]} 3... d6 {[%clk 0:02:58.7]} 4.
Nc3 {[%clk 0:02:59.1]} 4... c5 {[%clk 0:02:59.1]} 5. d5 {[%clk 0:02:49.2]} 5...
e6 {[%clk 0:02:57.5]} 6. e4 {[%clk 0:02:41.8]} 6... Ne7 {[%clk 0:02:56.8]} 7. h4
{[%clk 0:02:35.2]} 7... exd5 {[%clk 0:02:55.3]} 8. cxd5 {[%clk 0:02:34.1]} 8...
Bg4 {[%clk 0:02:55.2]} 9. Be2 {[%clk 0:02:33.5]} 9... O-O {[%clk 0:02:49.7]} 10.
Bf4 {[%clk 0:02:26]} 10... Qb6 {[%clk 0:02:35.4]} 11. Qb3 {[%clk 0:02:23.3]}
11... Bxf3 {[%clk 0:01:48.1]} 12. gxf3 {[%clk 0:02:02.2]} 12... Be5 {[%clk
0:01:40.3]} 13. Bh6 {[%clk 0:01:40.7]} 13... Rd8 {[%clk 0:01:31.1]} 14. h5
{[%clk 0:01:40.4]} 14... Qxb3 {[%clk 0:01:26.5]} 15. axb3 {[%clk 0:01:38.5]}
15... Nd7 {[%clk 0:01:21.4]} 16. Be3 {[%clk 0:01:10]} 16... a6 {[%clk
0:01:20.2]} 17. Kd2 {[%clk 0:01:02.8]} 17... b5 {[%clk 0:01:14.7]} 18. Kc2
{[%clk 0:01:02.9]} 18... Nb6 {[%clk 0:01:08.1]} 19. Ra5 {[%clk 0:01:02]} 19...
b4 {[%clk 0:01:00.8]} 20. Nb1 {[%clk 0:01:00.1]} 20... Rdc8 {[%clk 0:00:40]} 21.
Nd2 {[%clk 0:00:58.8]} 21... f5 {[%clk 0:00:28.4]} 22. Bg5 {[%clk 0:00:52.4]}
22... Rc7 {[%clk 0:00:24]} 23. hxg6 {[%clk 0:00:51.1]} 23... hxg6 {[%clk
0:00:22.9]} 24. Nc4 {[%clk 0:00:45.6]} 24... Nxc4 {[%clk 0:00:22.3]} 25. Bxc4
{[%clk 0:00:46.2]} 25... fxe4 {[%clk 0:00:19.8]} 26. fxe4 {[%clk 0:00:45.9]}
26... Rf8 {[%clk 0:00:19.3]} 27. Be3 {[%clk 0:00:43.5]} 27... Bd4 {[%clk
0:00:18.4]} 28. Bxd4 {[%clk 0:00:38.2]} 28... cxd4 {[%clk 0:00:19.3]} 29. Rh2
{[%clk 0:00:38.7]} 29... Kg7 {[%clk 0:00:18.7]} 30. Rxa6 {[%clk 0:00:38.6]}
30... Rd7 {[%clk 0:00:18.2]} 31. Kd3 {[%clk 0:00:37.9]} 31... g5 {[%clk
0:00:18.2]} 32. Bb5 {[%clk 0:00:33.6]} 32... Rdd8 {[%clk 0:00:17.4]} 33. Ra7
{[%clk 0:00:33.3]} 33... Kf6 {[%clk 0:00:17.7]} 34. Kxd4 {[%clk 0:00:27.7]}
34... Ng6 {[%clk 0:00:17.8]} 35. Rh6 {[%clk 0:00:26.5]} 35... Rh8 {[%clk
0:00:17.6]} 36. Rxh8 {[%clk 0:00:25.3]} 36... Rxh8 {[%clk 0:00:18.5]} 37. Rd7
{[%clk 0:00:25.6]} 37... Rh2 {[%clk 0:00:15.3]} 38. Rxd6+ {[%clk 0:00:25.7]}
38... Kg7 {[%clk 0:00:15.7]} 39. Rd7+ {[%clk 0:00:22.4]} 39... Kf6 {[%clk
0:00:15.4]} 40. e5+ {[%clk 0:00:20.1]} 40... Nxe5 {[%clk 0:00:15.5]} 41. Rd6+
{[%clk 0:00:20.2]} 41... Kf5 {[%clk 0:00:16]} 42. Re6 {[%clk 0:00:18.7]} 42...
Nf3+ {[%clk 0:00:15.5]} 43. Ke3 {[%clk 0:00:18.2]} 43... g4 {[%clk 0:00:15.8]}
44. Bd3+ {[%clk 0:00:16.4]} 44... Kg5 {[%clk 0:00:15.3]} 45. d6 {[%clk
0:00:16.6]} 45... Rh8 {[%clk 0:00:12.5]} 46. d7 {[%clk 0:00:16.5]} 46... Rd8
{[%clk 0:00:12.5]} 47. Bb5 {[%clk 0:00:16.8]} 47... Kf5 {[%clk 0:00:11.8]} 48.
Re8 {[%clk 0:00:17]} 1-0

[Event "*** Titled Tuesday Blitz"]
[Site "Chess.com"]
[Date "2021.02.09"]
[Round "10"]
[White "ErikBlomqvist"]
[Black "Aslanov_Umid"]
[Result "0-1"]
[WhiteElo "2507"]
[BlackElo "2386"]
[TimeControl "180+1"]
[EndTime "11:55:47 PST"]
[Termination "Aslanov_Umid won by resignation"]

1. e4 {[%clk 0:03:00.9]} 1... c6 {[%clk 0:02:57.2]} 2. d4 {[%clk 0:02:59]} 2...
d5 {[%clk 0:02:58.1]} 3. exd5 {[%clk 0:02:59.9]} 3... cxd5 {[%clk 0:02:57.4]} 4.
Bd3 {[%clk 0:03:00.5]} 4... Nf6 {[%clk 0:02:58.3]} 5. c3 {[%clk 0:03:00]} 5...
Nc6 {[%clk 0:02:58.7]} 6. h3 {[%clk 0:02:58.9]} 6... g6 {[%clk 0:02:52.1]} 7.
Nf3 {[%clk 0:02:57.8]} 7... Bg7 {[%clk 0:02:52]} 8. O-O {[%clk 0:02:58.1]} 8...
O-O {[%clk 0:02:52.3]} 9. Re1 {[%clk 0:02:57.8]} 9... Bf5 {[%clk 0:02:51.6]} 10.
Bf1 {[%clk 0:02:56.2]} 10... Ne4 {[%clk 0:02:28.1]} 11. Be3 {[%clk 0:02:54.5]}
11... e5 {[%clk 0:02:24.3]} 12. dxe5 {[%clk 0:02:51.9]} 12... Nxe5 {[%clk
0:02:25.2]} 13. Nxe5 {[%clk 0:02:33.9]} 13... Bxe5 {[%clk 0:02:26.1]} 14. Nd2
{[%clk 0:02:26.7]} 14... Bc7 {[%clk 0:02:11.7]} 15. Nf3 {[%clk 0:02:16.4]} 15...
Re8 {[%clk 0:01:59.7]} 16. Qb3 {[%clk 0:02:12.7]} 16... Qd6 {[%clk 0:01:49.3]}
17. Rad1 {[%clk 0:02:09.2]} 17... Red8 {[%clk 0:01:36.7]} 18. Bd4 {[%clk
0:01:23.9]} 18... Ng5 {[%clk 0:01:31.2]} 19. Be5 {[%clk 0:00:26.4]} 19... Nxf3+
{[%clk 0:01:30.2]} 20. gxf3 {[%clk 0:00:27.3]} 20... Qc5 {[%clk 0:01:26.6]} 21.
Bxc7 {[%clk 0:00:24.5]} 21... Qxc7 {[%clk 0:01:27.5]} 22. Rxd5 {[%clk
0:00:24.9]} 22... Qf4 {[%clk 0:01:21]} 23. Qxb7 {[%clk 0:00:11.3]} 23... Be6
{[%clk 0:01:18.4]} 24. Rxd8+ {[%clk 0:00:10.4]} 24... Rxd8 {[%clk 0:01:19.3]}
25. Qe4 {[%clk 0:00:04.4]} 25... Qg5+ {[%clk 0:01:13.4]} 26. Kh2 {[%clk
0:00:05.3]} 26... Rd2 {[%clk 0:01:13.9]} 27. Re2 {[%clk 0:00:03.5]} 27... Rd1
{[%clk 0:01:13.2]} 28. Re1 {[%clk 0:00:02.7]} 28... Rxe1 {[%clk 0:00:59]} 29.
Qxe1 {[%clk 0:00:03.6]} 29... Qf4+ {[%clk 0:00:59.9]} 30. Kg1 {[%clk 0:00:03.3]}
30... Qxf3 {[%clk 0:00:59.9]} 31. Qe3 {[%clk 0:00:03.5]} 31... Qxe3 {[%clk
0:00:52.4]} 32. fxe3 {[%clk 0:00:03.4]} 32... Bxa2 {[%clk 0:00:53.3]} 33. Kf2
{[%clk 0:00:03.1]} 33... a5 {[%clk 0:00:47.2]} 34. b4 {[%clk 0:00:04]} 34... a4
{[%clk 0:00:42.4]} 35. Bd3 {[%clk 0:00:03.8]} 35... a3 {[%clk 0:00:39.2]} 36. b5
{[%clk 0:00:03.4]} 36... Bd5 {[%clk 0:00:37.8]} 37. Bb1 {[%clk 0:00:03.1]} 37...
Kf8 {[%clk 0:00:34.3]} 38. e4 {[%clk 0:00:02.6]} 38... Bxe4 {[%clk 0:00:31.2]}
39. Ba2 {[%clk 0:00:03.1]} 39... Ke7 {[%clk 0:00:31.8]} 40. Ke3 {[%clk
0:00:03.7]} 40... f5 {[%clk 0:00:31.1]} 41. Kd4 {[%clk 0:00:03.9]} 41... g5
{[%clk 0:00:23.7]} 42. c4 {[%clk 0:00:04.2]} 42... h5 {[%clk 0:00:20.9]} 43. c5
{[%clk 0:00:04.6]} 43... g4 {[%clk 0:00:20.1]} 44. hxg4 {[%clk 0:00:04.4]} 44...
hxg4 {[%clk 0:00:20.3]} 45. b6 {[%clk 0:00:04.2]} 45... g3 {[%clk 0:00:19.9]}
46. Ke3 {[%clk 0:00:04.4]} 46... g2 {[%clk 0:00:19.6]} 47. Kf2 {[%clk
0:00:04.4]} 47... Kd7 {[%clk 0:00:20.1]} 48. Bb3 {[%clk 0:00:02.3]} 48... Kc6
{[%clk 0:00:18.1]} 0-1

[Event "*** Titled Tuesday Blitz"]
[Site "Chess.com"]
[Date "2021.02.09"]
[Round "10"]
[White "Zhigalko_Sergei"]
[Black "GoltsevDmitry2000"]
[Result "1-0"]
[WhiteElo "2890"]
[BlackElo "2730"]
[TimeControl "180+1"]
[EndTime "11:55:49 PST"]
[Termination "Zhigalko_Sergei won on time"]

1. e4 {[%clk 0:03:00.9]} 1... e6 {[%clk 0:02:56.2]} 2. d4 {[%clk 0:03:00]} 2...
d5 {[%clk 0:02:55.4]} 3. e5 {[%clk 0:03:00.5]} 3... c5 {[%clk 0:02:53.8]} 4. c3
{[%clk 0:03:00.7]} 4... Nc6 {[%clk 0:02:51]} 5. Nf3 {[%clk 0:03:00.6]} 5... Qb6
{[%clk 0:02:47.6]} 6. a3 {[%clk 0:03:00.6]} 6... c4 {[%clk 0:02:41.9]} 7. Nbd2
{[%clk 0:03:00.6]} 7... Na5 {[%clk 0:02:40.6]} 8. Be2 {[%clk 0:02:59.7]} 8...
Bd7 {[%clk 0:02:39.4]} 9. O-O {[%clk 0:02:59.4]} 9... Ne7 {[%clk 0:02:38.9]} 10.
Rb1 {[%clk 0:02:58.5]} 10... Nf5 {[%clk 0:02:25.9]} 11. h4 {[%clk 0:02:49.9]}
11... Be7 {[%clk 0:02:19.4]} 12. h5 {[%clk 0:02:48.8]} 12... O-O {[%clk
0:02:15.5]} 13. g4 {[%clk 0:02:44.1]} 13... Nh6 {[%clk 0:02:08.6]} 14. Nh2
{[%clk 0:02:39.1]} 14... f5 {[%clk 0:01:42.6]} 15. exf6 {[%clk 0:02:35.4]} 15...
Bxf6 {[%clk 0:01:41.9]} 16. Ndf3 {[%clk 0:02:28.2]} 16... Nf7 {[%clk 0:01:38.3]}
17. g5 {[%clk 0:02:09.1]} 17... Be7 {[%clk 0:01:38.3]} 18. Ng4 {[%clk
0:02:09.5]} 18... e5 {[%clk 0:01:30.7]} 19. Ngxe5 {[%clk 0:02:02.8]} 19... Bf5
{[%clk 0:01:25.9]} 20. Be3 {[%clk 0:01:57.9]} 20... Nxe5 {[%clk 0:01:19.1]} 21.
Nxe5 {[%clk 0:01:58]} 21... Bxb1 {[%clk 0:01:10.1]} 22. Qxb1 {[%clk 0:01:57.9]}
22... Qe6 {[%clk 0:01:06.8]} 23. Bg4 {[%clk 0:01:57.7]} 23... Qd6 {[%clk
0:01:03.7]} 24. Nd7 {[%clk 0:01:15.5]} 24... Rfd8 {[%clk 0:00:56.5]} 25. Qf5
{[%clk 0:01:13.5]} 25... g6 {[%clk 0:00:53]} 26. Qe6+ {[%clk 0:01:11]} 26... Kh8
{[%clk 0:00:48]} 27. Ne5 {[%clk 0:00:46.1]} 27... Qxe6 {[%clk 0:00:47.9]} 28.
Bxe6 {[%clk 0:00:47]} 28... Kg7 {[%clk 0:00:48.8]} 29. h6+ {[%clk 0:00:32.1]}
29... Kf8 {[%clk 0:00:48.8]} 30. Nf7 {[%clk 0:00:33]} 30... Re8 {[%clk
0:00:42.2]} 31. Bxd5 {[%clk 0:00:33]} 31... Bd8 {[%clk 0:00:34.2]} 32. Ne5
{[%clk 0:00:25.4]} 32... Bc7 {[%clk 0:00:28.8]} 33. Nd7+ {[%clk 0:00:21.2]}
33... Ke7 {[%clk 0:00:28.4]} 34. Nf6 {[%clk 0:00:22.1]} 34... Rh8 {[%clk
0:00:22.2]} 35. Re1 {[%clk 0:00:22.3]} 35... Kd8 {[%clk 0:00:20.5]} 36. Kg2
{[%clk 0:00:16.7]} 36... Bd6 {[%clk 0:00:14.3]} 37. Rh1 {[%clk 0:00:09.5]} 37...
Kc7 {[%clk 0:00:10.3]} 38. Rh4 {[%clk 0:00:09.7]} 38... Rad8 {[%clk 0:00:07.9]}
39. Re4 {[%clk 0:00:09.7]} 39... b5 {[%clk 0:00:03.4]} 40. Re6 {[%clk
0:00:08.6]} 40... Nc6 {[%clk 0:00:01.5]} 41. Be4 {[%clk 0:00:07.3]} 41... Rhf8
{[%clk 0:00:01.3]} 42. Nxh7 {[%clk 0:00:06.3]} 1-0

[Event "*** Titled Tuesday Blitz"]
[Site "Chess.com"]
[Date "2021.02.09"]
[Round "10"]
[White "Mbneu"]
[Black "DarZay"]
[Result "1-0"]
[WhiteElo "2292"]
[BlackElo "2147"]
[TimeControl "180+1"]
[EndTime "11:55:49 PST"]
[Termination "Mbneu won on time"]

1. d4 {[%clk 0:03:00.9]} 1... d5 {[%clk 0:02:58.4]} 2. c4 {[%clk 0:03:01.3]}
2... e6 {[%clk 0:02:57.7]} 3. Nc3 {[%clk 0:03:01.8]} 3... Be7 {[%clk 0:02:57.4]}
4. Nf3 {[%clk 0:03:02.2]} 4... Nf6 {[%clk 0:02:57.5]} 5. g3 {[%clk 0:03:02.6]}
5... O-O {[%clk 0:02:55.7]} 6. Bg2 {[%clk 0:03:03.1]} 6... c6 {[%clk 0:02:54.6]}
7. O-O {[%clk 0:03:03.1]} 7... Ne4 {[%clk 0:02:53.4]} 8. Ne5 {[%clk 0:02:55.6]}
8... f6 {[%clk 0:02:49.7]} 9. Nd3 {[%clk 0:02:54.7]} 9... f5 {[%clk 0:02:46.3]}
10. Bf4 {[%clk 0:02:51.1]} 10... Nd7 {[%clk 0:02:43.4]} 11. cxd5 {[%clk
0:02:47.6]} 11... exd5 {[%clk 0:02:41.8]} 12. f3 {[%clk 0:02:47.6]} 12... Nxc3
{[%clk 0:02:40.3]} 13. bxc3 {[%clk 0:02:48.5]} 13... Nf6 {[%clk 0:02:39.5]} 14.
Qc2 {[%clk 0:02:45.6]} 14... Bd6 {[%clk 0:02:35.9]} 15. Be5 {[%clk 0:02:42.1]}
15... Be6 {[%clk 0:02:31.3]} 16. Rae1 {[%clk 0:02:40.3]} 16... Qc7 {[%clk
0:02:28.8]} 17. Bxd6 {[%clk 0:02:36.7]} 17... Qxd6 {[%clk 0:02:28.6]} 18. Ne5
{[%clk 0:02:37.3]} 18... Nd7 {[%clk 0:02:26.8]} 19. Nxd7 {[%clk 0:02:36.4]}
19... Bxd7 {[%clk 0:02:25.6]} 20. e4 {[%clk 0:02:36]} 20... fxe4 {[%clk
0:02:23.7]} 21. fxe4 {[%clk 0:02:35.3]} 21... dxe4 {[%clk 0:02:15.2]} 22. Bxe4
{[%clk 0:02:31.6]} 22... h6 {[%clk 0:02:14.2]} 23. Qb3+ {[%clk 0:02:19]} 23...
Kh8 {[%clk 0:02:09.7]} 24. Qxb7 {[%clk 0:02:18.4]} 24... Rfb8 {[%clk 0:02:01.3]}
25. Qa6 {[%clk 0:02:13.6]} 25... Rb2 {[%clk 0:01:56.7]} 26. Re2 {[%clk
0:02:11.9]} 26... Rab8 {[%clk 0:01:49.1]} 27. Bc2 {[%clk 0:02:03.3]} 27... Bh3
{[%clk 0:01:37.9]} 28. Rfe1 {[%clk 0:01:54]} 28... Rf8 {[%clk 0:01:17.3]} 29.
Be4 {[%clk 0:01:02.2]} 29... Rb6 {[%clk 0:00:56.1]} 30. Qd3 {[%clk 0:00:59.7]}
30... Qf6 {[%clk 0:00:55.3]} 31. Bg2 {[%clk 0:00:49.7]} 31... Bg4 {[%clk
0:00:55.4]} 32. Re8 {[%clk 0:00:44.5]} 32... Rb8 {[%clk 0:00:24.5]} 33. Rxb8
{[%clk 0:00:42.3]} 33... Rxb8 {[%clk 0:00:23.7]} 34. Qe3 {[%clk 0:00:41.9]}
34... Rf8 {[%clk 0:00:19.2]} 35. h3 {[%clk 0:00:38.5]} 35... Bf5 {[%clk
0:00:17.4]} 36. Qe5 {[%clk 0:00:34.8]} 36... Qg5 {[%clk 0:00:16.2]} 37. Rf1
{[%clk 0:00:32.4]} 37... Qg6 {[%clk 0:00:11.8]} 38. g4 {[%clk 0:00:30.8]} 38...
Re8 {[%clk 0:00:07]} 39. Qxf5 {[%clk 0:00:25.3]} 39... Qd6 {[%clk 0:00:05.9]}
40. Qf4 {[%clk 0:00:23.1]} 40... Qe7 {[%clk 0:00:04]} 41. Kh2 {[%clk 0:00:20]}
41... Qa3 {[%clk 0:00:02.8]} 42. Qf7 {[%clk 0:00:17.9]} 42... Rb8 {[%clk
0:00:01.2]} 43. Rf2 {[%clk 0:00:15.4]} 43... Qxc3 {[%clk 0:00:01.2]} 44. Qf4
{[%clk 0:00:10.7]} 1-0

[Event "*** Titled Tuesday Blitz"]
[Site "Chess.com"]
[Date "2021.02.09"]
[Round "10"]
[White "GM_Huschenbeth"]
[Black "SanQui14"]
[Result "1-0"]
[WhiteElo "2611"]
[BlackElo "2457"]
[TimeControl "180+1"]
[EndTime "11:55:51 PST"]
[Termination "GM_Huschenbeth won on time"]

1. e4 {[%clk 0:03:00.9]} 1... e5 {[%clk 0:02:51.8]} 2. Nf3 {[%clk 0:03:00.5]}
2... Nc6 {[%clk 0:02:51.9]} 3. Bb5 {[%clk 0:03:00.7]} 3... a6 {[%clk 0:02:51.9]}
4. Ba4 {[%clk 0:03:00.9]} 4... Nf6 {[%clk 0:02:52]} 5. O-O {[%clk 0:03:01]} 5...
Be7 {[%clk 0:02:52]} 6. Re1 {[%clk 0:03:00.7]} 6... b5 {[%clk 0:02:52.2]} 7. Bb3
{[%clk 0:03:00.8]} 7... O-O {[%clk 0:02:52.5]} 8. c3 {[%clk 0:02:59.6]} 8... d5
{[%clk 0:02:52.4]} 9. d4 {[%clk 0:02:57.6]} 9... Nxe4 {[%clk 0:02:39.6]} 10.
dxe5 {[%clk 0:02:49.2]} 10... Be6 {[%clk 0:02:37.8]} 11. Nbd2 {[%clk 0:02:41.2]}
11... Nc5 {[%clk 0:02:34.4]} 12. Bc2 {[%clk 0:02:40.9]} 12... d4 {[%clk
0:02:20.7]} 13. cxd4 {[%clk 0:02:16.1]} 13... Nxd4 {[%clk 0:02:20.3]} 14. Nxd4
{[%clk 0:02:17]} 14... Qxd4 {[%clk 0:02:16.5]} 15. Nf3 {[%clk 0:02:17]} 15...
Qxd1 {[%clk 0:02:10.8]} 16. Rxd1 {[%clk 0:02:17.9]} 16... Rfd8 {[%clk
0:02:09.8]} 17. Be3 {[%clk 0:02:08.5]} 17... Bg4 {[%clk 0:02:03.8]} 18. Rac1
{[%clk 0:02:01.5]} 18... Ne6 {[%clk 0:02:00.6]} 19. Be4 {[%clk 0:01:47.2]} 19...
Rab8 {[%clk 0:01:52.7]} 20. h3 {[%clk 0:01:21.3]} 20... Bh5 {[%clk 0:01:51.8]}
21. Ba7 {[%clk 0:01:15.3]} 21... Rxd1+ {[%clk 0:01:50.9]} 22. Rxd1 {[%clk
0:01:16.2]} 22... Rd8 {[%clk 0:01:44.8]} 23. Rxd8+ {[%clk 0:01:12.5]} 23... Nxd8
{[%clk 0:01:41.2]} 24. Nd4 {[%clk 0:01:09.5]} 24... Bg6 {[%clk 0:01:28]} 25. Nf5
{[%clk 0:00:48.6]} 25... Bf8 {[%clk 0:01:24.9]} 26. g4 {[%clk 0:00:47.6]} 26...
c5 {[%clk 0:00:57]} 27. Bd5 {[%clk 0:00:41.8]} 27... Ne6 {[%clk 0:00:47]} 28.
Kh2 {[%clk 0:00:27.3]} 28... h5 {[%clk 0:00:43.9]} 29. Kg3 {[%clk 0:00:26.9]}
29... hxg4 {[%clk 0:00:42.8]} 30. hxg4 {[%clk 0:00:27.8]} 30... a5 {[%clk
0:00:35.5]} 31. Nd6 {[%clk 0:00:25.7]} 31... b4 {[%clk 0:00:32.1]} 32. f4 {[%clk
0:00:24.4]} 32... Bb1 {[%clk 0:00:27.1]} 33. f5 {[%clk 0:00:23.5]} 33... Nd8
{[%clk 0:00:25.5]} 34. Bxc5 {[%clk 0:00:22.1]} 34... Be7 {[%clk 0:00:13]} 35.
Bb6 {[%clk 0:00:20.9]} 35... Kf8 {[%clk 0:00:05.4]} 36. Bxa5 {[%clk 0:00:20.7]}
36... f6 {[%clk 0:00:04.9]} 37. Bxb4 {[%clk 0:00:12.5]} 37... fxe5 {[%clk
0:00:04.9]} 38. Bc5 {[%clk 0:00:10.9]} 38... Nf7 {[%clk 0:00:04.3]} 39. Nxf7
{[%clk 0:00:09.6]} 39... Bxc5 {[%clk 0:00:04.3]} 40. Nxe5 {[%clk 0:00:09]} 40...
Bd6 {[%clk 0:00:04.8]} 41. Kf4 {[%clk 0:00:09.5]} 41... g5+ {[%clk 0:00:05.2]}
42. fxg6 {[%clk 0:00:09.1]} 42... Bxg6 {[%clk 0:00:06.1]} 43. a4 {[%clk
0:00:08.5]} 43... Bc2 {[%clk 0:00:05.9]} 44. a5 {[%clk 0:00:07.6]} 44... Bd3
{[%clk 0:00:04.5]} 45. g5 {[%clk 0:00:05.2]} 45... Ke7 {[%clk 0:00:03.5]} 46.
Be4 {[%clk 0:00:04.9]} 1-0

[Event "*** Titled Tuesday Blitz"]
[Site "Chess.com"]
[Date "2021.02.09"]
[Round "10"]
[White "NikolaMa2000"]
[Black "publicaccountcze"]
[Result "1-0"]
[WhiteElo "1900"]
[BlackElo "2242"]
[TimeControl "180+1"]
[EndTime "11:55:55 PST"]
[Termination "NikolaMa2000 won on time"]

1. d4 {[%clk 0:03:00.9]} 1... d5 {[%clk 0:02:58.5]} 2. c4 {[%clk 0:03:01.3]}
2... e6 {[%clk 0:02:58.8]} 3. Nc3 {[%clk 0:03:01.2]} 3... c5 {[%clk 0:02:58.6]}
4. cxd5 {[%clk 0:02:58.2]} 4... exd5 {[%clk 0:02:57.4]} 5. Nf3 {[%clk
0:02:58.7]} 5... Nc6 {[%clk 0:02:54.7]} 6. g3 {[%clk 0:02:57.6]} 6... Nf6 {[%clk
0:02:53.7]} 7. Bg2 {[%clk 0:02:57.2]} 7... Be7 {[%clk 0:02:52.3]} 8. dxc5 {[%clk
0:02:52.9]} 8... Bxc5 {[%clk 0:02:50.1]} 9. Bg5 {[%clk 0:02:49.3]} 9... Be6
{[%clk 0:02:29.9]} 10. O-O {[%clk 0:02:47.6]} 10... d4 {[%clk 0:02:23]} 11. Bxf6
{[%clk 0:02:25.8]} 11... Qxf6 {[%clk 0:02:20.4]} 12. Ne4 {[%clk 0:02:25.9]}
12... Qe7 {[%clk 0:02:20.7]} 13. Nxc5 {[%clk 0:02:23.9]} 13... Qxc5 {[%clk
0:02:19.7]} 14. Rc1 {[%clk 0:02:22]} 14... Qb4 {[%clk 0:02:14.1]} 15. a3 {[%clk
0:02:12]} 15... Qxb2 {[%clk 0:02:07.6]} 16. Rb1 {[%clk 0:02:04.6]} 16... Qxa3
{[%clk 0:02:06.7]} 17. Rxb7 {[%clk 0:02:04.3]} 17... O-O {[%clk 0:02:02.5]} 18.
Nxd4 {[%clk 0:01:53.9]} 18... Nxd4 {[%clk 0:01:54.3]} 19. Qxd4 {[%clk
0:01:50.6]} 19... a5 {[%clk 0:01:39.1]} 20. Ra1 {[%clk 0:01:45.1]} 20... Rad8
{[%clk 0:01:25]} 21. Rxa3 {[%clk 0:01:09.8]} 21... Rxd4 {[%clk 0:01:22.5]} 22.
Bf3 {[%clk 0:01:00.3]} 22... Bh3 {[%clk 0:01:19.4]} 23. e3 {[%clk 0:00:49.2]}
23... Rb4 {[%clk 0:01:16.9]} 24. Rxa5 {[%clk 0:00:39.3]} 24... Rc8 {[%clk
0:00:49.2]} 25. Ra1 {[%clk 0:00:30.3]} 25... Rxb7 {[%clk 0:00:24]} 26. Bxb7
{[%clk 0:00:29.1]} 26... Rb8 {[%clk 0:00:22.5]} 27. Bg2 {[%clk 0:00:25.1]} 27...
Bxg2 {[%clk 0:00:18.4]} 28. Kxg2 {[%clk 0:00:25]} 28... g6 {[%clk 0:00:18.4]}
29. Ra2 {[%clk 0:00:23.1]} 29... h5 {[%clk 0:00:18]} 30. f4 {[%clk 0:00:23]}
30... Kg7 {[%clk 0:00:17.2]} 31. e4 {[%clk 0:00:21.7]} 31... Kf6 {[%clk
0:00:16.6]} 32. e5+ {[%clk 0:00:20.4]} 32... Ke6 {[%clk 0:00:15.7]} 33. Ra6+
{[%clk 0:00:19.3]} 33... Ke7 {[%clk 0:00:15.6]} 34. Kh3 {[%clk 0:00:18.2]} 34...
Rb2 {[%clk 0:00:14.5]} 35. Ra7+ {[%clk 0:00:15.3]} 35... Ke6 {[%clk 0:00:13.8]}
36. Ra6+ {[%clk 0:00:15.4]} 36... Ke7 {[%clk 0:00:13.7]} 37. Rf6 {[%clk
0:00:15.7]} 37... Rc2 {[%clk 0:00:12.3]} 38. f5 {[%clk 0:00:15.3]} 38... Rf2
{[%clk 0:00:05.5]} 39. fxg6 {[%clk 0:00:07.1]} 39... Rxf6 {[%clk 0:00:05]} 40.
exf6+ {[%clk 0:00:06.8]} 40... Kxf6 {[%clk 0:00:04.6]} 41. gxf7 {[%clk
0:00:07.3]} 41... Kxf7 {[%clk 0:00:05]} 42. Kh4 {[%clk 0:00:06.8]} 42... Kg6
{[%clk 0:00:05.3]} 43. h3 {[%clk 0:00:06.7]} 43... Kh6 {[%clk 0:00:03.7]} 44. g4
{[%clk 0:00:06.9]} 1-0